bitfinex/quotes_ETHUSD_20240811
["timestamp","ask_amount","ask_price","bid_price","bid_amount"]
[1723410101528,3.91159,2556.5,2556.0,4.7263]
[1723410101703,4.5608,2557.0,2555.6,4.7263]
[1723410101901,3.91236,2556.0,2555.6,0.45658783]
[1723410102114,3.91151,2556.6,2555.1,8.6873]
[1723410102115,3.91252,2555.9,2555.1,4.7263]
[1723410102321,3.91252,2555.9,2555.0,3.91383]
[1723410102699,3.91268,2555.8,2555.0,3.91383]
[1723410102901,4.5608,2556.1,2553.4,8.64255]
[1723410103141,3.91365,2555.2,2553.5,3.961]
[1723410103322,3.91344,2555.3,2554.4,3.91478]
[1723410103504,3.9127,2555.8,2554.4,3.91478]
[1723410103707,3.55,2555.7,2554.4,3.91478]
[1723410104020,3.91354,2555.3,2554.5,4.306118]
[1723410104244,3.91354,2555.3,2554.5,0.391478]
[1723410104452,3.91313,2555.5,2554.5,4.306128]
[1723410104770,4.5608,2555.4,2554.1,0.12503]
[1723410104954,12.39104,2554.2,2554.1,0.12503]
[1723410105267,3.91512,2554.2,2554.1,0.12503]
[1723410105820,4.5608,2554.7,2554.1,0.12503]
[1723410106047,3.91498,2554.3,2554.1,0.12503]
[1723410106254,3.91512,2554.2,2554.1,0.12503]
[1723410106623,27.1364,2554.2,2554.1,1e-05]
[1723410106849,27.1364,2554.2,2551.5,4.08603]
[1723410106850,3.91728,2552.8,2551.5,4.08603]
[1723410107064,3.91738,2552.8,2551.9,3.91852]
[1723410107272,3.91771,2552.6,2551.6,1.16369991]
[1723410107578,3.91754,2552.7,2551.7,0.91688499]
[1723410107723,3.91667,2553.2,2552.1,3.91831]
[1723410107925,4.5608,2553.1,2551.5,0.12503]
[1723410108272,3.91753,2552.7,2551.5,0.12503]
[1723410108559,4.5608,2553.6,2551.6,3.99745633]
[1723410108760,4.5608,2553.6,2551.9,3.91852]
[1723410108761,3.91688,2553.1,2551.9,3.91852]
[1723410108943,3.91665,2553.2,2551.8,4.7263]
[1723410109148,3.91678,2553.2,2551.7,4.80379863]
[1723410109381,3.91778,2552.5,2551.6,3.91909]
[1723410109548,3.91846,2552.1,2551.5,0.12503]
[1723410109723,3.91775,2552.5,2551.5,4.04428]
[1723410109922,3.91732,2552.8,2552.0,3.91845]
[1723410110174,7.5498,2553.3,2551.6,4.4879]
[1723410110337,4.5498,2553.2,2551.5,0.12503]
[1723410110760,3.91895,2551.7,2551.5,0.12503]
[1723410110928,16.3071,2551.6,2551.5,0.12503]
[1723410111324,20.2262,2551.6,2551.5,0.12503]
[1723410111664,19.8571,2551.6,2551.5,0.12503]
[1723410112083,19.8571,2551.6,2549.9,3.9216]
[1723410112084,3.92061,2550.7,2549.9,3.9217]
[1723410112376,3.91987,2551.2,2550.0,0.84096]
[1723410112549,7.5498,2551.6,2550.0,0.84096]
[1723410112550,8.46891,2551.6,2550.7,3.92048]
[1723410112883,3.91898,2551.7,2550.9,3.92018]
[1723410113033,3.9194,2551.5,2550.5,3.92073]
[1723410113239,3.91941,2551.4,2550.5,3.92071]
[1723410113546,3.91852,2552.0,2551.1,3.91984]
[1723410113747,3.91852,2552.0,2551.2,3.9197]
[1723410114061,3.91819,2552.2,2550.7,4.4879]
[1723410114062,3.91819,2552.2,2551.4,3.91937]
[1723410114239,3.91835,2552.1,2551.2,3.91963]
[1723410114441,3.9179,2552.4,2550.7,4.4879]
[1723410114640,3.91703,2553.0,2551.6,3.9191]
[1723410114641,0.40819731,2553.0,2551.6,3.9191]
[1723410114941,3.91864,2552.0,2551.1,3.91982]
[1723410115160,4.5498,2553.2,2550.8,3.74879]
[1723410115161,3.91792,2552.4,2550.8,3.74879]
[1723410115376,0.391792,2552.3,2551.6,3.9191]
[1723410115539,3.91758,2552.6,2551.6,3.9191]
[1723410115734,3.91814,2552.3,2551.4,3.91926]
[1723410115962,8.46787,2552.3,2550.9,0.823669]
[1723410116174,8.46787,2552.3,2551.2,3.9197]
[1723410116374,3.9185,2552.0,2551.2,3.9197]
[1723410116581,3.9185,2552.0,2550.9,0.823669]
[1723410116582,3.9185,2552.0,2550.9,4.743819]
[1723410116794,3.91819,2552.2,2551.0,3.0]
[1723410116957,3.91737,2552.8,2551.1,0.3823669]
[1723410117157,8.46661,2553.1,2552.2,3.91812]
[1723410117482,0.40805129,2553.5,2552.3,0.391812]
[1723410117483,4.32430129,2553.5,2552.3,0.391812]
[1723410117666,3.91604,2553.6,2552.8,3.91714]
[1723410117865,4.5498,2554.1,2552.9,0.07833341]
[1723410117866,3.91556,2554.0,2552.9,0.07833341]
[1723410118160,3.91529,2554.1,2553.2,3.91663]
[1723410118354,3.91529,2554.1,2553.1,3.91678]
[1723410118549,3.91573,2553.8,2552.9,3.91711]
[1723410118750,3.91489,2554.4,2553.0,3.391711]
[1723410118751,3.91517,2554.2,2553.0,3.391711]
[1723410119061,3.91487,2554.4,2553.7,3.91586]
[1723410119272,3.91487,2554.4,2553.1,3.0]
[1723410119273,3.91487,2554.4,2553.6,3.91593]
[1723410119471,3.91487,2554.4,2552.6,0.2908235]
[1723410119472,3.91665,2553.2,2552.6,0.2908235]
[1723410119672,3.91739,2552.8,2551.5,4.4879]
[1723410119993,3.91738,2552.8,2551.5,4.4879]
[1723410120199,3.91738,2552.8,2551.6,4.759754]
[1723410120361,3.91743,2552.7,2551.9,3.91862]
[1723410120561,3.91738,2552.8,2551.8,3.91865]
[1723410120771,3.91761,2552.6,2551.7,3.9188]
[1723410121081,4.5498,2553.3,2551.6,0.840724]
[1723410121413,3.91742,2552.7,2551.6,4.759764]
[1723410121699,8.4664,2553.3,2551.4,3.91927]
[1723410121700,0.45498,2553.2,2551.4,3.91927]
[1723410121856,3.91722,2552.9,2552.0,3.91845]
[1723410122061,0.45498,2553.2,2551.3,3.961]
[1723410122298,5.56976635,2553.8,2552.8,3.91726]
[1723410122484,1.01996635,2553.8,2553.1,3.91675]
[1723410122684,4.5498,2553.7,2551.9,3.91857]
[1723410122942,3.91709,2553.0,2551.7,3.91884]
[1723410123106,3.91625,2553.5,2550.9,3.92016]
[1723410123107,3.91886,2551.8,2550.9,3.92016]
[1723410123293,3.91943,2551.4,2550.3,3.961]
[1723410123600,3.91918,2551.6,2550.5,3.92077]
[1723410123802,3.91918,2551.6,2550.3,3.961]
[1723410123803,3.91918,2551.6,2550.8,3.92023]
[1723410124008,3.91927,2551.5,2550.7,3.92047]
[1723410124159,3.91918,2551.6,2550.8,3.9203]
[1723410124358,4.5498,2551.9,2551.3,3.91949]
[1723410124603,0.391709,2552.9,2551.3,3.91949]
[1723410124604,4.5498,2552.6,2551.7,3.9188]
[1723410124760,3.9174,2552.8,2551.9,3.9185]
[1723410124961,0.61375486,2552.4,2551.7,3.9189]
[1723410125160,0.61375486,2552.4,2551.5,6.91922]
[1723410125366,3.91768,2552.6,2551.7,3.91891]
[1723410125593,3.91637,2553.4,2552.3,3.9179]
[1723410125803,0.1,2554.4,2552.3,3.9179]
[1723410125804,0.61368093,2552.9,2552.8,3.91726]
[1723410125959,5.65818168,2554.5,2552.3,4.4879]
[1723410125960,3.91607,2553.6,2552.3,4.4879]
[1723410126160,3.91647,2553.4,2552.4,6.91775]
[1723410126398,0.61350709,2553.6,2552.4,6.91775]
[1723410126399,3.91684,2553.1,2552.4,3.0]
[1723410126612,3.91595,2553.7,2552.5,0.07834263]
[1723410126824,3.915,2554.3,2553.6,3.91597]
[1723410126973,1.04629612,2554.4,2553.4,3.9162]
[1723410126974,0.61345402,2554.4,2553.4,3.9162]
[1723410127175,0.61345402,2554.4,2553.2,3.91659]
[1723410127399,0.61345402,2554.4,2553.0,3.0]
[1723410127400,0.61345402,2554.4,2554.0,3.9153]
[1723410127616,0.61345402,2554.4,2554.1,0.07830206]
[1723410127878,0.61345402,2554.4,2554.3,3.91496]
[1723410128082,4.5498,2555.0,2554.3,3.91496]
[1723410128297,0.61318435,2554.8,2554.3,3.91496]
[1723410128506,0.61318435,2554.8,2554.1,3.91516]
[1723410128714,0.61318435,2554.8,2554.0,3.0]
[1723410128715,0.61318435,2554.8,2554.5,3.91463]
[1723410129122,3.91404,2555.0,2554.2,3.91511]
[1723410129279,3.91404,2555.0,2554.1,3.91521]
[1723410129280,3.91405,2554.9,2554.1,4.21521]
[1723410129475,3.91406,2554.9,2554.1,4.21521]
[1723410129675,3.91404,2555.0,2554.2,3.91511]
[1723410130090,3.91404,2555.0,2554.1,4.21521]
[1723410130312,4.52661763,2555.3,2554.3,3.91496]
[1723410130613,0.61314763,2555.3,2554.7,7.82859]
[1723410130812,0.61314763,2555.3,2554.9,3.91394]
[1723410131019,0.61314763,2555.3,2555.0,3.91384]
[1723410131188,0.61314763,2555.3,2555.2,3.91358]
[1723410131377,0.40788613,2556.1,2555.2,3.91358]
[1723410131378,3.91221,2556.1,2555.2,3.91358]
[1723410131578,3.91353,2555.3,2554.3,8.4105]
[1723410131779,3.91403,2555.0,2554.1,3.91526]
[1723410132020,4.727,2555.5,2553.7,7.87682]
[1723410132231,4.727,2555.5,2553.9,3.91545]
[1723410132232,3.9141,2554.9,2553.9,3.91545]
[1723410132380,3.9141,2554.9,2554.0,3.91542]
[1723410132577,3.9141,2554.9,2554.1,3.91524]
[1723410132775,4.727,2555.5,2553.3,8.4105]
[1723410132776,0.391221,2554.8,2553.3,12.32687]
[1723410132981,3.91501,2554.3,2553.3,3.91637]
[1723410133204,3.91553,2554.0,2553.1,3.91676]
[1723410133404,3.9158,2553.8,2552.6,3.91744]
[1723410133601,3.91675,2553.2,2552.4,3.9178]
[1723410133828,3.91697,2553.0,2552.1,3.91828]
[1723410133988,3.91773,2552.5,2552.1,0.61348076]
[1723410134178,3.91738,2552.8,2552.1,0.61348076]
[1723410134381,4.727,2553.1,2552.2,3.91808]
[1723410134585,3.91651,2553.3,2552.4,3.91777]
[1723410134818,3.91651,2553.3,2552.4,3.91775]
[1723410134992,8.64309,2553.6,2552.9,3.91711]
[1723410135183,4.727,2553.6,2552.9,3.91711]
[1723410135382,4.727,2553.6,2552.8,3.9955908]
[1723410135383,8.64314,2553.6,2552.8,3.9955908]
[1723410135708,4.727,2553.6,2552.9,3.91706]
[1723410135889,3.91549,2554.0,2552.9,3.91706]
[1723410135890,3.91549,2554.0,2553.1,3.91669]
[1723410136084,0.391549,2553.9,2553.2,3.91664]
[1723410136289,3.91549,2554.0,2553.1,3.91669]
[1723410136522,3.91583,2553.8,2553.1,3.91669]
[1723410136916,4.727,2554.2,2553.3,3.91647]
[1723410136917,8.64215,2554.2,2553.3,3.91647]
[1723410137084,4.727,2554.2,2553.5,7.83213]
[1723410137282,4.727,2554.2,2552.9,6.9171]
[1723410137482,3.91588,2553.7,2552.9,6.9171]
[1723410137726,4.727,2554.2,2553.3,3.91644]
[1723410137886,3.91546,2554.0,2553.2,3.91652]
[1723410138099,3.91546,2554.0,2553.3,3.91648]
[1723410138305,8.64216,2554.2,2552.9,3.0]
[1723410138306,4.727,2554.2,2553.6,3.91603]
[1723410138724,8.64224,2554.2,2553.4,3.91632]
[1723410138931,3.91543,2554.0,2553.2,3.91653]
[1723410139115,8.64224,2554.2,2553.5,3.91605]
[1723410139513,8.64224,2554.2,2553.4,3.91634]
[1723410139939,4.727,2554.2,2553.5,3.91619]
[1723410140246,4.727,2554.2,2553.6,3.91601]
[1723410140740,4.727,2554.2,2553.3,7.83282]
[1723410140741,8.64214,2554.2,2553.3,7.83282]
[1723410140928,4.727,2554.2,2553.5,3.91609]
[1723410141127,3.91563,2553.9,2553.0,1.88905]
[1723410141313,3.91524,2554.2,2553.4,3.91624]
[1723410141515,8.13251,2554.7,2553.4,3.91624]
[1723410141766,3.91518,2554.2,2553.2,3.9166]
[1723410141900,3.91552,2554.0,2553.2,7.83316]
[1723410142103,3.91552,2554.0,2553.2,3.91656]
[1723410142541,3.91552,2554.0,2553.2,7.8331]
[1723410142700,3.91552,2554.0,2553.2,7.83309]
[1723410142905,3.91503,2554.3,2553.0,5.80593]
[1723410143105,0.391503,2554.2,2553.1,3.0]
[1723410143305,3.91583,2553.8,2553.1,3.0]
[1723410143542,3.91629,2553.5,2552.8,3.961]
[1723410143843,8.1336,2554.0,2552.4,3.91781]
[1723410143844,4.2181,2554.0,2552.4,3.91781]
[1723410144045,3.91743,2552.7,2552.0,3.91839]
[1723410144219,3.91743,2552.7,2552.0,3.91838]
[1723410145245,8.13514,2553.0,2551.8,7.87969]
[1723410145596,3.91687,2553.1,2552.4,3.91774]
[1723410146054,4.2181,2553.4,2552.0,3.91839]
[1723410146226,3.91768,2552.6,2551.8,3.91871]
[1723410146428,3.91797,2552.4,2551.6,3.91901]
[1723410146679,3.91828,2552.2,2551.4,3.91932]
[1723410146844,4.2181,2552.3,2551.2,3.91965]
[1723410146845,3.91861,2552.0,2551.2,3.91965]
[1723410147175,3.91891,2551.8,2551.0,3.91993]
[1723410147482,4.310801,2551.8,2550.8,7.88122]
[1723410147657,4.310801,2551.8,2551.0,3.92001]
[1723410147997,3.91827,2552.2,2551.3,3.91945]
[1723410148131,4.2181,2552.3,2551.1,3.91978]
[1723410148333,3.91826,2552.2,2551.5,3.91925]
[1723410148646,8.1362,2552.3,2551.6,0.0783769]
[1723410148843,4.2181,2552.3,2551.6,0.47813059]
[1723410149175,4.2181,2552.9,2551.8,3.91871]
[1723410149340,4.2181,2552.9,2551.9,3.07835083]
[1723410149544,4.2181,2552.9,2551.9,3.0]
[1723410149756,4.2181,2552.9,2552.0,0.07835928]
[1723410149963,4.32367717,2553.9,2552.0,0.07835928]
[1723410149964,8.1347,2553.3,2552.5,3.91762]
[1723410150431,8.19575,2553.9,2552.4,3.91788]
[1723410150631,8.19575,2553.9,2552.3,3.961]
[1723410150632,3.91615,2553.6,2552.5,3.0]
[1723410150850,3.91644,2553.4,2552.4,3.0]
[1723410151034,3.91629,2553.5,2552.5,1.087895]
[1723410151233,3.91669,2553.2,2552.5,1.087895]
[1723410151561,4.2801,2553.7,2552.4,6.91775]
[1723410151562,3.91642,2553.4,2552.4,6.91787]
[1723410151766,3.91651,2553.3,2552.6,3.91745]
[1723410151944,3.91642,2553.4,2552.6,3.91745]
[1723410151945,3.91642,2553.4,2552.6,5.000976]
[1723410152146,3.91642,2553.4,2552.6,1.083526]
[1723410152147,3.91666,2553.2,2552.6,1.083526]
[1723410152482,3.91642,2553.4,2552.6,6.91747]
[1723410152684,3.91642,2553.4,2552.6,3.91747]
[1723410152975,7.83444,2552.9,2552.2,3.91817]
[1723410153194,3.91685,2553.1,2551.8,3.961]
[1723410153400,4.2801,2553.3,2551.6,7.83803]
[1723410153401,3.91802,2552.4,2551.6,7.83803]
[1723410153560,3.91815,2552.3,2551.6,3.91898]
[1723410153761,3.91815,2552.3,2551.6,4.702816]
[1723410153995,3.91822,2552.2,2551.6,4.702816]
[1723410154209,3.91859,2552.0,2551.0,3.91996]
[1723410154496,3.91889,2551.8,2551.0,3.91996]
[1723410154715,3.91904,2551.7,2550.8,7.88125]
[1723410154856,3.91902,2551.7,2550.8,3.92023]
[1723410155059,3.91902,2551.7,2551.0,3.91999]
[1723410155261,8.19879,2551.9,2550.3,3.961]
[1723410155497,4.2801,2551.9,2551.2,3.91969]
[1723410155699,8.19878,2551.9,2551.2,3.91958]
[1723410155860,3.91697,2553.0,2550.4,5.70062818]
[1723410155861,3.91686,2553.1,2552.2,3.91817]
[1723410156061,5.30015352,2553.3,2552.4,3.91786]
[1723410156256,3.91733,2552.8,2551.4,3.961]
[1723410156501,3.91668,2553.2,2551.5,3.91922]
[1723410156675,3.91668,2553.2,2552.4,7.83565]
[1723410156870,3.91668,2553.2,2552.4,7.83556]
[1723410157077,3.91668,2553.2,2552.4,3.91778]
[1723410157277,3.91536,2554.1,2551.7,3.0]
[1723410157278,3.91601,2553.7,2552.1,4.3847]
[1723410157476,4.2801,2554.0,2552.1,4.3847]
[1723410157703,3.91821,2552.2,2551.4,4.3847]
[1723410157889,4.2801,2553.1,2551.1,2.44087978]
[1723410157890,3.91794,2552.4,2551.6,3.91901]
[1723410158066,3.91764,2552.6,2551.2,3.9196]
[1723410158258,3.91731,2552.8,2551.0,3.961]
[1723410158259,8.19824,2552.3,2551.4,3.91932]
[1723410158520,4.2801,2551.8,2550.6,2.44087978]
[1723410158675,4.2801,2551.8,2550.0,4.99856012]
[1723410159008,3.91895,2551.7,2550.9,7.84018]
[1723410159206,4.2801,2551.8,2550.9,3.92006]
[1723410159415,4.2801,2551.8,2551.1,3.91977]
[1723410159579,3.91775,2552.5,2551.4,3.91937]
[1723410159580,4.2801,2552.3,2551.4,3.91937]
[1723410159905,8.19828,2552.3,2551.5,3.91924]
[1723410160062,4.2801,2552.3,2550.7,3.961]
[1723410160263,3.9194,2551.5,2550.6,3.92052]
[1723410160464,4.2801,2552.1,2551.3,3.91953]
[1723410160709,4.2801,2552.1,2551.1,3.91975]
[1723410160710,3.9186,2552.0,2551.1,3.91975]
[1723410160962,3.9186,2552.0,2551.3,3.91956]
[1723410161244,4.2801,2552.1,2551.6,3.9191]
[1723410161461,3.9179,2552.4,2551.7,3.99722303]
[1723410161754,8.1976,2552.7,2551.6,3.91907]
[1723410162112,8.1976,2552.7,2551.7,0.07836027]
[1723410162308,8.1976,2552.7,2552.0,3.91838]
[1723410162651,8.1976,2552.7,2551.8,3.99703013]
[1723410162652,3.91767,2552.6,2551.8,3.99703013]
[1723410162945,3.91767,2552.6,2551.8,3.91869]
[1723410163149,3.91767,2552.6,2551.8,3.91878]
[1723410163459,3.91828,2552.2,2551.3,3.0]
[1723410163608,3.91758,2552.6,2551.6,3.9191]
[1723410163811,8.19753,2552.7,2551.8,3.91879]
[1723410164054,3.91789,2552.4,2551.7,0.39191]
[1723410164349,4.2801,2552.7,2551.4,3.91931]
[1723410164554,3.91798,2552.4,2551.6,3.919]
[1723410164711,3.91771,2552.6,2551.9,3.91862]
[1723410164906,4.2801,2552.7,2551.9,3.91856]
[1723410165262,4.2801,2552.7,2552.0,3.99685008]
[1723410165410,4.2801,2552.7,2551.6,4.702855]
[1723410165759,3.91685,2553.1,2551.3,3.0]
[1723410165760,3.91687,2553.1,2552.4,3.91787]
[1723410165962,3.91628,2553.5,2552.8,3.91724]
[1723410166146,3.91615,2553.6,2552.9,0.0783307]
[1723410166313,3.9161,2553.6,2552.9,0.0783307]
[1723410166712,8.43194,2553.7,2552.9,0.0783307]
[1723410166920,8.43194,2553.7,2553.1,3.91678]
[1723410166921,4.516,2553.7,2553.1,3.91678]
[1723410167230,8.43189,2553.7,2553.0,3.91682]
[1723410167442,8.43189,2553.7,2553.0,3.99514629]
[1723410168109,4.516,2553.7,2553.0,3.99514629]
[1723410168249,3.91545,2554.0,2553.2,3.91658]
[1723410168433,3.91534,2554.1,2553.3,3.99477539]
[1723410168619,3.91543,2554.0,2553.3,0.07831539]
[1723410168817,3.91561,2553.9,2553.3,0.07831539]
[1723410169020,3.91605,2553.6,2552.7,6.961]
[1723410169224,3.91635,2553.4,2552.7,3.9174]
[1723410169532,4.9676,2554.2,2552.6,3.91753]
[1723410169533,3.91653,2553.3,2552.6,3.91753]
[1723410169751,3.91626,2553.5,2552.6,3.91753]
[1723410170122,3.91665,2553.2,2551.9,4.1626]
[1723410170460,3.91665,2553.2,2552.0,4.33468]
[1723410170461,3.91696,2553.0,2552.0,4.33468]
[1723410170761,4.516,2553.8,2552.0,4.33468]
[1723410170762,4.516,2553.8,2553.0,3.91681]
[1723410170946,3.91546,2554.0,2552.6,4.2329]
[1723410170947,3.91547,2554.0,2553.1,0.07831829]
[1723410171161,4.4748,2554.3,2553.1,3.99499829]
[1723410171162,4.36678,2554.2,2553.1,3.99499829]
[1723410171360,4.36678,2554.2,2553.3,3.91649]
[1723410171525,4.36678,2554.2,2553.4,0.07831662]
[1723410171526,3.91554,2554.0,2553.4,0.07831662]
[1723410171725,4.36674,2554.2,2553.4,0.07831662]
[1723410171976,0.60021624,2554.1,2553.4,0.07831662]
[1723410172269,0.60021624,2554.1,2552.8,3.07831441]
[1723410172423,3.91514,2554.2,2553.3,3.91639]
[1723410172623,3.91514,2554.2,2553.4,0.07831448]
[1723410173234,4.4748,2554.3,2553.4,0.07831448]
[1723410173540,3.91522,2554.2,2553.4,0.07831448]
[1723410173925,7.83047,2554.2,2553.4,0.07831448]
[1723410174263,3.91522,2554.2,2553.4,0.07831448]
[1723410174745,4.4748,2554.3,2553.4,0.47778193]
[1723410174947,4.4748,2554.3,2553.5,3.99439509]
[1723410175467,8.38916,2554.7,2553.7,3.91584]
[1723410175705,3.91467,2554.5,2553.8,0.07830008]
[1723410176495,3.91489,2554.4,2553.5,11.39614]
[1723410176679,3.91467,2554.5,2553.6,1.139614]
[1723410176986,3.91467,2554.5,2553.7,0.0783001]
[1723410177491,4.4748,2554.7,2553.5,7.48]
[1723410177672,3.91561,2553.9,2553.5,7.48]
[1723410177877,3.91574,2553.8,2553.0,11.39695]
[1723410178060,3.91595,2553.7,2553.0,7.48]
[1723410178265,3.91592,2553.7,2553.0,7.48]
[1723410178493,4.4748,2554.0,2553.0,10.670719]
[1723410178809,3.91535,2554.1,2553.3,3.91645]
[1723410178947,4.4748,2554.4,2553.5,3.91604]
[1723410179148,4.4748,2554.4,2553.4,3.91625]
[1723410179149,8.38964,2554.4,2553.6,3.91603]
[1723410179404,4.4748,2554.4,2553.7,0.07830335]
[1723410179603,3.91521,2554.2,2553.4,3.91628]
[1723410179808,3.9144,2554.7,2553.7,3.91587]
[1723410180024,4.4748,2553.8,2553.1,7.48]
[1723410180168,3.91607,2553.6,2553.1,7.48]
[1723410180367,3.91591,2553.7,2553.1,7.48]
[1723410180609,4.4748,2553.8,2553.1,7.48]
[1723410180797,4.4748,2553.8,2552.6,7.48]
[1723410181005,3.91678,2553.2,2552.6,7.48]
[1723410181211,3.91687,2553.1,2552.3,19.84]
[1723410181368,3.91698,2553.0,2552.3,19.84]
[1723410181566,3.91604,2553.6,2552.3,19.84]
[1723410181870,3.9164,2553.4,2552.5,3.9177]
[1723410182082,3.9164,2553.4,2552.5,2.767564]
[1723410182298,0.44748,2553.7,2552.5,2.767564]
[1723410182299,0.44748,2553.7,2552.5,6.685164]
[1723410182503,7.83231,2553.6,2552.7,3.9173]
[1723410182693,3.91613,2553.6,2552.7,3.9173]
[1723410182899,4.4748,2553.8,2552.9,3.91701]
[1723410183235,3.91484,2554.4,2553.0,0.07831758]
[1723410183368,3.91484,2554.4,2553.6,3.91603]
[1723410183569,8.38934,2554.6,2553.7,0.0783011]
[1723410183794,8.38934,2554.6,2553.6,4.307593]
[1723410184113,12.30394,2554.6,2553.7,3.91587]
[1723410184327,8.38934,2554.6,2553.6,4.307533]
[1723410184619,12.30397,2554.6,2553.7,4.3465933]
[1723410184784,12.30397,2554.6,2553.7,0.4307533]
[1723410184785,3.91475,2554.5,2553.7,0.4307533]
[1723410185507,8.38934,2554.6,2553.8,3.99390683]
[1723410185885,8.38934,2554.6,2553.8,0.07829683]
[1723410186067,12.30396,2554.6,2553.7,4.3466333]
[1723410186266,3.91451,2554.6,2553.8,4.82021417]
[1723410186480,3.91318,2555.5,2553.9,3.99383109]
[1723410186481,4.4748,2555.5,2553.9,3.99383109]
[1723410186773,8.38799,2555.5,2554.0,3.83267311]
[1723410186982,4.4748,2555.1,2553.2,7.87756]
[1723410187214,3.91614,2553.6,2552.7,8.5468464]
[1723410187727,3.9158,2553.8,2552.7,8.5468264]
[1723410187928,3.9165,2553.3,2552.8,1.27797264]
[1723410188081,3.9165,2553.3,2552.2,3.961]
[1723410188082,3.91649,2553.4,2552.3,3.91794]
[1723410188288,3.91681,2553.1,2552.3,3.91799]
[1723410188521,3.9165,2553.3,2552.4,3.91786]
[1723410188828,3.91596,2553.7,2552.2,3.961]
[1723410189118,3.91596,2553.7,2551.9,3.9185]
[1723410189119,3.91726,2552.9,2551.9,3.9185]
[1723410189319,3.91726,2552.9,2552.1,3.91831]
[1723410189495,3.91726,2552.9,2552.2,0.391831]
[1723410189692,3.91726,2552.9,2552.0,3.91837]
[1723410189881,3.91685,2553.1,2552.1,3.91829]
[1723410190208,3.91593,2553.7,2552.8,3.91715]
[1723410190657,3.9156,2553.9,2552.7,3.91732]
[1723410190658,3.9158,2553.8,2552.7,3.9173]
[1723410190915,3.9158,2553.8,2552.8,0.81061]
[1723410191117,8.8183,2554.0,2552.4,7.1888]
[1723410191118,4.90281,2554.0,2552.4,7.1888]
[1723410191276,3.91565,2553.9,2552.6,3.91751]
[1723410191479,3.91589,2553.7,2552.8,3.91717]
[1723410191677,3.91565,2553.9,2553.0,3.91695]
[1723410191881,4.4571,2554.0,2553.1,3.99508451]
[1723410192183,4.4571,2554.0,2552.9,0.391717]
[1723410192379,3.91599,2553.7,2552.8,3.91722]
[1723410192591,3.91607,2553.6,2552.8,3.91722]
[1723410192841,3.91599,2553.7,2552.8,3.91722]
[1723410193126,3.91565,2553.9,2552.8,3.91715]
[1723410193283,3.91599,2553.7,2552.8,3.91715]
[1723410193619,3.91575,2553.8,2553.0,3.91695]
[1723410193924,3.91575,2553.8,2553.1,0.07831909]
[1723410194738,3.91608,2553.6,2552.9,0.691715]
[1723410195418,4.4571,2553.5,2551.9,4.1888]
[1723410195603,3.91759,2552.6,2551.9,4.1888]
[1723410195924,3.91713,2552.9,2551.9,8.10734]
[1723410196129,3.91754,2552.7,2551.7,3.961]
[1723410196301,3.91748,2552.7,2551.6,3.9191]
[1723410196502,3.91748,2552.7,2551.7,3.91892]
[1723410196503,3.91759,2552.6,2551.7,3.91892]
[1723410197101,3.91789,2552.4,2551.5,8.10795]
[1723410197324,3.91767,2552.6,2551.7,3.91893]
[1723410197528,3.91767,2552.6,2551.8,0.391893]
[1723410198191,3.91772,2552.5,2551.8,0.391893]
[1723410198313,3.91781,2552.5,2551.6,3.0]
[1723410198519,3.91781,2552.5,2551.6,6.91901]
[1723410198829,3.91866,2551.9,2551.2,3.961]
[1723410199148,3.91676,2553.2,2550.5,2.4493695]
[1723410199149,3.91889,2551.8,2551.3,0.07837192]
[1723410199449,8.37539,2552.2,2551.3,3.91945]
[1723410199601,8.37539,2552.2,2551.4,0.07837233]
[1723410199797,3.91794,2552.4,2551.6,3.91908]
[1723410200005,3.91797,2552.4,2551.7,0.0783638]
[1723410200399,3.91797,2552.4,2551.2,8.1498]
[1723410200400,8.37474,2552.6,2551.2,8.1498]
[1723410200626,3.91738,2552.8,2551.5,3.9192]
[1723410200842,3.91758,2552.6,2551.7,3.91881]
[1723410201046,3.91792,2552.4,2551.8,0.391881]
[1723410201215,3.91766,2552.6,2551.6,0.0783551]
[1723410201546,8.37394,2553.1,2551.3,0.81498]
[1723410201547,4.4571,2553.5,2551.8,4.1888]
[1723410201716,3.91706,2553.0,2552.1,3.91833]
[1723410201931,3.91706,2553.0,2552.2,4.701849]
[1723410202131,1.55997942,2553.4,2552.4,3.91778]
[1723410202132,4.9293922,2553.4,2552.4,3.91778]
[1723410202333,4.9293922,2553.4,2552.4,3.91777]
[1723410202539,4.4571,2553.5,2552.4,3.91773]
[1723410202854,4.4571,2553.5,2552.7,3.91732]
[1723410203071,4.4571,2553.5,2552.5,4.580573]
[1723410203217,3.9166,2553.3,2552.5,4.580573]
[1723410203419,4.4571,2553.5,2552.5,0.391773]
[1723410203627,3.91638,2553.4,2552.3,3.91797]
[1723410203856,3.91638,2553.4,2552.3,0.07833788]
[1723410203857,3.91674,2553.2,2552.3,0.07833788]
[1723410204056,3.91674,2553.2,2552.4,0.07833935]
[1723410204273,7.83285,2553.4,2552.4,3.91776]
[1723410204419,4.4571,2553.5,2552.3,0.69963679]
[1723410204621,3.91726,2552.9,2552.1,3.0]
[1723410205057,3.91698,2553.0,2552.2,3.91818]
[1723410205523,8.37339,2553.5,2552.7,3.91741]
[1723410205767,4.4571,2554.0,2552.8,0.47007221]
[1723410206072,3.91468,2554.5,2553.7,3.91587]
[1723410206377,3.9151,2554.3,2553.4,3.91624]
[1723410206667,3.9151,2554.3,2553.3,3.91643]